Workbook

Sheet Historic Data
C1: Murraylink: Access Arrangement
C2: Operating Expenditure Forecast
A3: Sheet: | B3: Historic Data | F3: As required in the RIN, nominal dollars for FY 2020 and FY 2021 to be converted into real FY 2023 dollars
B4: Consistent with ARIN | C4: FY21 | F4: FY 21 (rather than FY 20) is to be chosen as the base year. This is because FY 21 is more repsentative of future expenditures compared for FY 20.
F5: Notable change from FY 20 to FY 21:
B6: Opex costs | C6: $'000 | F6: * insurance cost has increased
B7: NETWORK OPERATIONS & MAINTENANCE | F7: * Commercial management fee - reduction revenue from other asset - Murraylink contributing to a higher proportion of revenue - likely to be ongoing
B8: Operating & Maintenance Costs | C8: 2677.577051
B9: Commercial Management Fees | C9: 598.103836
B10: 0
B11: OTHER COSTS
B12: Insurance | C12: 473.219076
B13: Connection fees | C13: 283.853878
B14: Staff Costs | C14: 0
B15: Tax on Property & Capital | C15: 79.415512
B16: Travel Costs | C16: 0
B17: Accounting/Audit Fees | C17: 11.626219
B18: Legal Fees | C18: 0
B19: Other | C19: 153.5673664
B20: 0
B21: Depreciation | C21: 5145.381621
B22: Impairment | C22: 0
B23: Amortisation | C23: 0
B24: Total | C24: =SUM(C7:C23) -> 9422.744559
B26: Regulatoy Account Total | C26: 9422.744559
B27: Difference | C27: =C24-C26 -> 0
B29: Categorised for Forecast Purposes (FY 21) | C29: Amount ($'000) | D29: Perecentage
B32: =B8 -> Operating & Maintenance Costs | C32: =INDEX($C$7:$C$23,MATCH($B32,$B$7:$B$23,0),0) -> 2677.577051 | D32: =C32/$C$43 -> 0.6259878083
B33: =B9 -> Commercial Management Fees | C33: =INDEX($C$7:$C$23,MATCH($B33,$B$7:$B$23,0),0) -> 598.103836 | D33: =C33/$C$43 -> 0.1398300412
B34: =B12 -> Insurance | C34: =INDEX($C$7:$C$23,MATCH($B34,$B$7:$B$23,0),0) -> 473.219076 | D34: 0.1106333699
B35: =B13 -> Connection fees | C35: =INDEX($C$7:$C$23,MATCH($B35,$B$7:$B$23,0),0) -> 283.853878 | D35: 0.06636188747
B36: Staff Costs | C36: =INDEX($C$7:$C$23,MATCH($B36,$B$7:$B$23,0),0) -> 0 | D36: 0
B37: Tax on Property & Capital | C37: =INDEX($C$7:$C$23,MATCH($B37,$B$7:$B$23,0),0) -> 79.415512 | D37: 0.01856646563
B38: Travel Costs | C38: =INDEX($C$7:$C$23,MATCH($B38,$B$7:$B$23,0),0) -> 0 | D38: 0
B39: Accounting/Audit Fees | C39: =INDEX($C$7:$C$23,MATCH($B39,$B$7:$B$23,0),0) -> 11.626219 | D39: 0.002718081016
B40: Legal Fees | C40: =INDEX($C$7:$C$23,MATCH($B40,$B$7:$B$23,0),0) -> 0 | D40: 0
B41: Other | C41: =INDEX($C$7:$C$23,MATCH($B41,$B$7:$B$23,0),0) -> 153.5673664 | D41: 0.03590234652
B43: Total in forecast | C43: =SUM(C32:C41) -> 4277.362938 | D43: =SUM(D32:D41) -> 1
B45: Debt Rasing Cost | C45: 0
B48: Total | C48: =C43-SUM(C45:C46) -> 4277.362938
B50: =B24 -> Total | C50: 4277.362938
B51: Difference | C51: =C48-C50 -> 0
B54: Nominal | C54: FY20 ($000)
B55: Operating and maintenance costs | C55: 2661.660342
B56: Management fees and expenses | C56: 532.843982
B57: Insurance | C57: 407.655336
B58: Connection fees | C58: 276.716374
B59: Tax on property | C59: 81.522045
B60: Accounting/audit fees | C60: 12.428889
B61: Legal fees | C61: 0
B62: Other costs | C62: 138.7718279
B64: Total | C64: 4111.598796

Sheet Inputs
J1: Murraylink: Access Arrangement
J2: Operating Expenditure Forecast
K4: CPI | X4: CPI data source
X5: FY 2018 to FY 2022 - based in ABS CPI
K6: FY 18 | L6: FY 19 | M6: FY 20 | N6: FY 21 | O6: FY22 | P6: FY23 | Q6: FY24 | R6: FY25 | S6: FY26 | T6: FY27 | U6: FY28 | X6: FY 2023 - https://www.rba.gov.au/publications/smp/2021/aug/economic-outlook.html
K7: 2018-03-01 | L7: =DATE(YEAR(K7)+1,MONTH(K7),DAY(K7)) -> 2019-03-01 | M7: =DATE(YEAR(L7)+1,MONTH(L7),DAY(L7)) -> 2020-03-01 | N7: 2021-03-01 | O7: 2022-03-01 | P7: 2023-03-01 | Q7: 2024-03-01 | R7: 2025-03-01 | S7: 2026-03-01 | T7: 2027-03-01 | U7: 2028-03-01 | X7: FY 2024 to FY 2028 - PTRM
K8: Actual | O8: RBA | Q8: PTRM
J9: CPI | K9: 0.01900452489 | L9: 0.01332149201 | M9: 0.02191060473 | N9: 0.01114922813 | O9: 0.0275 | P9: 0.0225 | Q9: 0.02374961844 | R9: 0.02374961844 | S9: 0.02374961844 | T9: 0.02374961844 | U9: 0.02374961844
J11: Index | K11: =L11/(1+L9) -> 0.9090325579 | L11: =M11/(1+M9) -> 0.9211422279 | M11: =N11/(1+N9) -> 0.9413250111 | N11: =O11/(1+O9) -> 0.9518200584 | O11: =P11/(1+P9) -> 0.97799511 | P11: 1 | Q11: =P11*(1+Q9) -> 1.023749618 | R11: =Q11*(1+R9) -> 1.048063281 | S11: =R11*(1+S9) -> 1.072954384 | T11: =S11*(1+T9) -> 1.098436642 | U11: =T11*(1+U9) -> 1.124524093
K13: 0.02125693161 | L13: 0.01900452489 | M13: 0.01332149201 | N13: 0.02191060473 | O13: 0.01114922813 | P13: 0.0225 | Q13: 0.02374961844 | R13: 0.02374961844 | S13: 0.02374961844 | T13: 0.02374961844 | U13: 0.02374961844
N14: 2020/21? | O14: 2021/22?
N15: =N6 -> FY 21 | O15: FY22 | P15: FY23 | Q15: FY24 | R15: FY25 | S15: FY26 | T15: FY27 | U15: =U6 -> FY28
B16: WPI | N16: 0.01694915254 | O16: 0.009825264614 | P16: 0.003793852401 | Q16: 0.005128940984 | R16: 0.008504989918 | S16: 0.01139630337 | T16: 0.006830847002 | U16: =T16 -> 0.006830847002
B17: Source: Powerlink Transmission Determination Proposal
B18: Source: Energex Revenue Determination Proposal

Sheet Calculation
B1: Murraylink: Access Arrangement
B2: Operating Expenditure Forecast
C3: $'000 | D3: FY21 | E3: FY22 | F3: FY23 | G3: FY24 | H3: FY25 | I3: FY26 | J3: FY27 | K3: FY28
B5: Calculating Base Opex
B6: Base Year Operating expenditure in RIN
B7: Operating Expenditure Financial Year 2021 | C7: Nominal | D7: =TotalOpex -> 4277.362938
B9: Removal of reported items subject to different calculation
B10: None | C10: Nominal | D10: 0
C11: Nominal | D11: 0
B12: Subtotal | C12: Nominal | D12: =D7-D10 -> 4277.362938
B14: Separation into categories relevant for forecasting
B16: Controllable Costs | C16: Nominal | D16: =TotalOpex-D20 -> 3520.289984
B18: ='Historic Data'!B34 -> Insurance | C18: Nominal | D18: =IFERROR(INDEX('Historic Data'!$C$32:$C$46,MATCH($B18,'Historic Data'!$B$32:$B$41,0),0),0) -> 473.219076
B19: ='Historic Data'!B35 -> Connection fees | C19: Nominal | D19: =IFERROR(INDEX('Historic Data'!$C$32:$C$46,MATCH($B19,'Historic Data'!$B$32:$B$41,0),0),0) -> 283.853878
B20: Uncontrollable Costs | C20: Nominal | D20: =SUM(D18:D19) -> 757.072954
B22: Total | C22: =C20 -> Nominal | D22: =D16+D20 -> 4277.362938
B24: Adjustment for PTRM $
B25: =B16 -> Controllable Costs | C25: Nominal | D25: =D16 -> 3520.289984
B26: =B20 -> Uncontrollable Costs | C26: Nominal | D26: =D20 -> 757.072954
B28: Total | C28: =C26 -> Nominal | D28: =SUM(D25:D26) -> 4277.362938
B30: Adjustment Factor
B31: FY22
B32: =B25 -> Controllable Costs | C32: CPI Mar 2022 | E32: =Inputs!O9 -> 0.0275
B33: =B26 -> Uncontrollable Costs | C33: CPI Mar 2022 | E33: =E32 -> 0.0275
B35: =B25 -> Controllable Costs | C35: $2022 | E35: =D25*(1+E32) -> 3617.097959
B36: =B26 -> Uncontrollable Costs | C36: $2022 | E36: =D26*(1+E33) -> 777.8924602
B38: Total | C38: =C36 -> $2022 | E38: =SUM(E35:E36) -> 4394.990419
B40: FY23
B41: =B32 -> Controllable Costs | C41: RBA CPI Forecast Dec 2021 | F41: =Inputs!P9 -> 0.0225
B42: =B33 -> Uncontrollable Costs | C42: RBA CPI Forecast Dec 2021 | F42: =F41 -> 0.0225
B44: =B35 -> Controllable Costs | C44: $2023 | G44: =E35*(1+F41) -> 3698.482663
B45: =B36 -> Uncontrollable Costs | C45: $2023 | G45: =E36*(1+F42) -> 795.3950406
B47: Total | C47: =C45 -> $2023 | G47: =SUM(G44:G45) -> 4493.877704
B49: Forecast trend
B50: Forecast WPI
B52: =B35 -> Controllable Costs | C52: $2023 | D52: =G44 -> 3698.482663 | E52: =D52 -> 3698.482663 | F52: =E52 -> 3698.482663 | G52: 3698.482663 | H52: 3698.482663 | I52: 3698.482663 | J52: 3698.482663 | K52: 3698.482663
B53: =B36 -> Uncontrollable Costs | C53: $2023 | D53: =G45 -> 795.3950406 | E53: =D53 -> 795.3950406 | F53: =E53 -> 795.3950406 | G53: 795.3950406 | H53: 795.3950406 | I53: 795.3950406 | J53: 795.3950406 | K53: 795.3950406
B55: Total | C55: $2023 | D55: =SUM(D52:D54) -> 4493.877704 | E55: 4493.877704 | F55: 4493.877704 | G55: 4493.877704 | H55: 4493.877704 | I55: 4493.877704 | J55: 4493.877704 | K55: 4493.877704
B58: Step Changes
B59: None | C59: $2023 | D59: 0 | E59: 0 | F59: 0 | G59: 0 | H59: 0 | I59: 0 | J59: 0 | K59: 0
B62: =B52 -> Controllable Costs | C62: $2023 | D62: =D52+D59 -> 3698.482663 | E62: =E52+E59 -> 3698.482663 | F62: =F52+F59 -> 3698.482663 | G62: 3698.482663 | H62: 3698.482663 | I62: 3698.482663 | J62: 3698.482663 | K62: 3698.482663
B63: =B53 -> Uncontrollable Costs | C63: $2023 | D63: =D53 -> 795.3950406 | E63: =E53 -> 795.3950406 | F63: 795.3950406 | G63: 795.3950406 | H63: 795.3950406 | I63: 795.3950406 | J63: 795.3950406 | K63: 795.3950406
B66: Total | C66: $2023 | D66: =SUM(D62:D63) -> 4493.877704 | E66: =SUM(E62:E63) -> 4493.877704 | F66: =SUM(F62:F63) -> 4493.877704 | G66: 4493.877704 | H66: 4493.877704 | I66: 4493.877704 | J66: 4493.877704 | K66: 4493.877704
B68: Separate Line item forecast
B69: None | C69: $2023 | D69: 0 | E69: 0 | F69: 0 | G69: 0 | H69: 0 | I69: 0 | J69: 0 | K69: 0
B71: =B62 -> Controllable Costs | C71: $2023 | D71: =D62+D69 -> 3698.482663 | E71: 3698.482663 | F71: =F62+F69 -> 3698.482663 | G71: 3698.482663 | H71: 3698.482663 | I71: 3698.482663 | J71: 3698.482663 | K71: 3698.482663
B72: =B63 -> Uncontrollable Costs | C72: $2023 | D72: =D63 -> 795.3950406 | E72: 795.3950406 | F72: =F63 -> 795.3950406 | G72: 795.3950406 | H72: 795.3950406 | I72: 795.3950406 | J72: 795.3950406 | K72: 795.3950406
B75: Total | C75: $2023 | D75: =SUM(D71:D72) -> 4493.877704 | E75: =SUM(E71:E72) -> 4493.877704 | F75: =SUM(F71:F72) -> 4493.877704 | G75: =SUM(G71:G72) -> 4493.877704 | H75: 4493.877704 | I75: 4493.877704 | J75: 4493.877704 | K75: 4493.877704
B77: Total
B78: =B71 -> Controllable Costs | C78: $2023 | D78: =D71 -> 3698.482663 | E78: 3698.482663 | F78: 3698.482663 | G78: =G71 -> 3698.482663 | H78: 3698.482663 | I78: 3698.482663 | J78: 3698.482663 | K78: 3698.482663
B79: =B72 -> Uncontrollable Costs | C79: $2023 | D79: 795.3950406 | E79: 795.3950406 | F79: 795.3950406 | G79: =G72 -> 795.3950406 | H79: 795.3950406 | I79: 795.3950406 | J79: 795.3950406 | K79: 795.3950406
B82: Total | C82: $2023 | D82: =SUM(D78:D79) -> 4493.877704 | E82: =SUM(E78:E79) -> 4493.877704 | F82: =SUM(F78:F79) -> 4493.877704 | G82: =SUM(G78:G81) -> 4493.877704 | H82: 4493.877704 | I82: 4493.877704 | J82: 4493.877704 | K82: 4493.877704

Sheet Output
A1: Murraylink: Access Arrangement
A2: Operating Expenditure Forecast
D4: FY21 | E4: FY22 | F4: FY23 | G4: FY24 | H4: FY25 | I4: FY26 | J4: FY27 | K4: FY28
A6: PTRM input
E8: Cost ('$000) | G8: =G4 -> FY24 | H8: =H4 -> FY25 | I8: FY26 | J8: FY27 | K8: FY28
E9: =Calculation!B78 -> Controllable Costs | G9: =Calculation!G78 -> 3698.482663 | H9: =Calculation!H78 -> 3698.482663 | I9: =Calculation!I78 -> 3698.482663 | J9: =Calculation!J78 -> 3698.482663 | K9: =Calculation!K78 -> 3698.482663
E10: =Calculation!B79 -> Uncontrollable Costs | G10: =Calculation!G79 -> 795.3950406 | H10: =Calculation!H79 -> 795.3950406 | I10: =Calculation!I79 -> 795.3950406 | J10: =Calculation!J79 -> 795.3950406 | K10: =Calculation!K79 -> 795.3950406
E11: =Calculation!B80 -> 0 | G11: =Calculation!G80/1000000 -> 0 | H11: =Calculation!H80/1000000 -> 0 | I11: =Calculation!I80/1000000 -> 0 | J11: =Calculation!J80/1000000 -> 0 | K11: =Calculation!K80/1000000 -> 0
A13: Graphs
A14: By cost type
J16: =E9 -> Controllable Costs | K16: =K9 -> 3698.482663
J17: =E10 -> Uncontrollable Costs | K17: =K10 -> 795.3950406
A20: RIN outputs (opex summary) | C20: ($) | F20: =D4 -> FY21 | G20: FY22 | H20: FY23 | I20: FY24 | J20: FY25 | K20: FY26 | L20: FY27 | M20: FY28
A25: Base Opex | F25: =Calculation!D22*(1+Inputs!$O$9)*(1+Inputs!$P$9)*1000 -> 4493877.704 | G25: =Calculation!$E$66*1000 -> 4493877.704 | H25: =SUM(Calculation!F52:F53)*1000 -> 4493877.704 | I25: =SUM(Calculation!G52:G53)*1000 -> 4493877.704 | J25: =SUM(Calculation!H52:H53)*1000 -> 4493877.704 | K25: =SUM(Calculation!I52:I53)*1000 -> 4493877.704 | L25: =SUM(Calculation!J52:J53)*1000 -> 4493877.704 | M25: =SUM(Calculation!K52:K53)*1000 -> 4493877.704
A26: Increment from base year to final year | H26: 0 | I26: 0 | J26: 0 | K26: 0 | L26: 0 | M26: 0
A27: Price Growth | I27: =I33-I30-I25 -> 0 | J27: 0 | K27: 0 | L27: 0 | M27: 0
A28: Output growth | I28: 0 | J28: 0 | K28: 0 | L28: 0 | M28: 0
A29: Productivity growth | I29: 0 | J29: 0 | K29: 0 | L29: 0 | M29: 0
A30: Step Change | I30: =Calculation!G59 -> 0 | J30: =Calculation!H59 -> 0 | K30: =Calculation!I59 -> 0 | L30: =Calculation!J59 -> 0 | M30: =Calculation!K59 -> 0
A31: Category specific | F31: 0 | G31: 0 | H31: 0 | I31: 0 | J31: 0 | K31: 0 | L31: 0 | M31: 0
A33: Total | F33: =Calculation!D82*1000 -> 4493877.704 | G33: =Calculation!E82*1000 -> 4493877.704 | H33: =Calculation!F82*1000 -> 4493877.704 | I33: =Calculation!G82*1000 -> 4493877.704 | J33: =Calculation!H82*1000 -> 4493877.704 | K33: =Calculation!I82*1000 -> 4493877.704 | L33: =Calculation!J82*1000 -> 4493877.704 | M33: =Calculation!K82*1000 -> 4493877.704
A35: Destination: Workbool 1 Table 2.16.1
A39: EBSS Table ($'m) | D39: =D4 -> FY21 | E39: =E4 -> FY22 | F39: FY23 | G39: FY24 | H39: FY25 | I39: FY26 | J39: FY27 | K39: FY28
A41: =Calculation!B78 -> Controllable Costs | C41: $FY23 | D41: =(Calculation!D78)/1000 -> 3.698482663 | E41: =(Calculation!E78)/1000 -> 3.698482663 | F41: =(Calculation!F78)/1000 -> 3.698482663 | G41: =(Calculation!G78)/1000 -> 3.698482663 | H41: =(Calculation!H78)/1000 -> 3.698482663 | I41: =(Calculation!I78)/1000 -> 3.698482663 | J41: =(Calculation!J78)/1000 -> 3.698482663 | K41: =(Calculation!K78)/1000 -> 3.698482663
A42: =Calculation!B79 -> Uncontrollable Costs | C42: $FY23 | D42: =(Calculation!D79)/1000 -> 0.7953950406 | E42: =(Calculation!E79)/1000 -> 0.7953950406 | F42: =(Calculation!F79)/1000 -> 0.7953950406 | G42: =(Calculation!G79)/1000 -> 0.7953950406 | H42: =(Calculation!H79)/1000 -> 0.7953950406 | I42: =(Calculation!I79)/1000 -> 0.7953950406 | J42: =(Calculation!J79)/1000 -> 0.7953950406 | K42: =(Calculation!K79)/1000 -> 0.7953950406
A43: Total | C43: $FY23 | D43: =SUM(D41:D42) -> 4.493877704 | E43: =SUM(E41:E42) -> 4.493877704 | F43: 4.493877704 | G43: 4.493877704 | H43: 4.493877704 | I43: 4.493877704 | J43: 4.493877704 | K43: 4.493877704
A45: Destination: Workbool 3 (EBSS) Table 7.5.1.2
A48: Commercial Services Fee
A50: Commercial Services Fee | C50: =C41 -> $FY23 | D50: ='Historic Data'!C9*(1+Calculation!E32)*(1+Calculation!F41)/1000 -> 0.6283791045 | E50: =D50 -> 0.6283791045 | F50: =E50 -> 0.6283791045 | G50: 0.6283791045 | H50: 0.6283791045 | I50: 0.6283791045 | J50: 0.6283791045 | K50: 0.6283791045
A54: RIN output (non-network)
A56: Insurance | C56: $FY23 | D56: =VLOOKUP($A56,'Historic Data'!$B$32:$D$41,3,FALSE)*D$63 -> 497.1728341 | E56: =VLOOKUP($A56,'Historic Data'!$B$32:$D$41,3,FALSE)*E$63 -> 497.1728341 | F56: =VLOOKUP($A56,'Historic Data'!$B$32:$D$41,3,FALSE)*F$63 -> 497.1728341 | G56: =VLOOKUP($A56,'Historic Data'!$B$32:$D$41,3,FALSE)*G$63 -> 497.1728341 | H56: =VLOOKUP($A56,'Historic Data'!$B$32:$D$41,3,FALSE)*H$63 -> 497.1728341 | I56: =VLOOKUP($A56,'Historic Data'!$B$32:$D$41,3,FALSE)*I$63 -> 497.1728341 | J56: =VLOOKUP($A56,'Historic Data'!$B$32:$D$41,3,FALSE)*J$63 -> 497.1728341 | K56: =VLOOKUP($A56,'Historic Data'!$B$32:$D$41,3,FALSE)*K$63 -> 497.1728341
A57: Connection fees | C57: $FY23 | D57: =VLOOKUP($A57,'Historic Data'!$B$32:$D$41,3,FALSE)*D$63 -> 298.2222065 | E57: =VLOOKUP($A57,'Historic Data'!$B$32:$D$41,3,FALSE)*E$63 -> 298.2222065 | F57: =VLOOKUP($A57,'Historic Data'!$B$32:$D$41,3,FALSE)*F$63 -> 298.2222065 | G57: =VLOOKUP($A57,'Historic Data'!$B$32:$D$41,3,FALSE)*G$63 -> 298.2222065 | H57: =VLOOKUP($A57,'Historic Data'!$B$32:$D$41,3,FALSE)*H$63 -> 298.2222065 | I57: =VLOOKUP($A57,'Historic Data'!$B$32:$D$41,3,FALSE)*I$63 -> 298.2222065 | J57: =VLOOKUP($A57,'Historic Data'!$B$32:$D$41,3,FALSE)*J$63 -> 298.2222065 | K57: =VLOOKUP($A57,'Historic Data'!$B$32:$D$41,3,FALSE)*K$63 -> 298.2222065
A58: Tax on Property & Capital | C58: $FY23 | D58: =VLOOKUP($A58,'Historic Data'!$B$32:$D$41,3,FALSE)*D$63 -> 83.43542595 | E58: =VLOOKUP($A58,'Historic Data'!$B$32:$D$41,3,FALSE)*E$63 -> 83.43542595 | F58: =VLOOKUP($A58,'Historic Data'!$B$32:$D$41,3,FALSE)*F$63 -> 83.43542595 | G58: =VLOOKUP($A58,'Historic Data'!$B$32:$D$41,3,FALSE)*G$63 -> 83.43542595 | H58: =VLOOKUP($A58,'Historic Data'!$B$32:$D$41,3,FALSE)*H$63 -> 83.43542595 | I58: =VLOOKUP($A58,'Historic Data'!$B$32:$D$41,3,FALSE)*I$63 -> 83.43542595 | J58: =VLOOKUP($A58,'Historic Data'!$B$32:$D$41,3,FALSE)*J$63 -> 83.43542595 | K58: =VLOOKUP($A58,'Historic Data'!$B$32:$D$41,3,FALSE)*K$63 -> 83.43542595
A59: Accounting/Audit Fees | C59: $FY23 | D59: =VLOOKUP($A59,'Historic Data'!$B$32:$D$41,3,FALSE)*D$63 -> 12.21472367 | E59: =VLOOKUP($A59,'Historic Data'!$B$32:$D$41,3,FALSE)*E$63 -> 12.21472367 | F59: =VLOOKUP($A59,'Historic Data'!$B$32:$D$41,3,FALSE)*F$63 -> 12.21472367 | G59: =VLOOKUP($A59,'Historic Data'!$B$32:$D$41,3,FALSE)*G$63 -> 12.21472367 | H59: =VLOOKUP($A59,'Historic Data'!$B$32:$D$41,3,FALSE)*H$63 -> 12.21472367 | I59: =VLOOKUP($A59,'Historic Data'!$B$32:$D$41,3,FALSE)*I$63 -> 12.21472367 | J59: =VLOOKUP($A59,'Historic Data'!$B$32:$D$41,3,FALSE)*J$63 -> 12.21472367 | K59: =VLOOKUP($A59,'Historic Data'!$B$32:$D$41,3,FALSE)*K$63 -> 12.21472367
A60: Legal Fees | C60: $FY23 | D60: =VLOOKUP($A60,'Historic Data'!$B$32:$D$41,3,FALSE)*D$63 -> 0 | E60: =VLOOKUP($A60,'Historic Data'!$B$32:$D$41,3,FALSE)*E$63 -> 0 | F60: =VLOOKUP($A60,'Historic Data'!$B$32:$D$41,3,FALSE)*F$63 -> 0 | G60: =VLOOKUP($A60,'Historic Data'!$B$32:$D$41,3,FALSE)*G$63 -> 0 | H60: =VLOOKUP($A60,'Historic Data'!$B$32:$D$41,3,FALSE)*H$63 -> 0 | I60: =VLOOKUP($A60,'Historic Data'!$B$32:$D$41,3,FALSE)*I$63 -> 0 | J60: =VLOOKUP($A60,'Historic Data'!$B$32:$D$41,3,FALSE)*J$63 -> 0 | K60: =VLOOKUP($A60,'Historic Data'!$B$32:$D$41,3,FALSE)*K$63 -> 0
A61: Other | C61: $FY23 | D61: =VLOOKUP($A61,'Historic Data'!$B$32:$D$41,3,FALSE)*D$63 -> 161.3407545 | E61: =VLOOKUP($A61,'Historic Data'!$B$32:$D$41,3,FALSE)*E$63 -> 161.3407545 | F61: =VLOOKUP($A61,'Historic Data'!$B$32:$D$41,3,FALSE)*F$63 -> 161.3407545 | G61: =VLOOKUP($A61,'Historic Data'!$B$32:$D$41,3,FALSE)*G$63 -> 161.3407545 | H61: =VLOOKUP($A61,'Historic Data'!$B$32:$D$41,3,FALSE)*H$63 -> 161.3407545 | I61: =VLOOKUP($A61,'Historic Data'!$B$32:$D$41,3,FALSE)*I$63 -> 161.3407545 | J61: =VLOOKUP($A61,'Historic Data'!$B$32:$D$41,3,FALSE)*J$63 -> 161.3407545 | K61: =VLOOKUP($A61,'Historic Data'!$B$32:$D$41,3,FALSE)*K$63 -> 161.3407545
A62: Total misc ($'000) | C62: $FY23 | D62: =SUM(D56:D61) -> 1052.385945 | E62: =SUM(E56:E61) -> 1052.385945 | F62: 1052.385945 | G62: 1052.385945 | H62: 1052.385945 | I62: 1052.385945 | J62: 1052.385945 | K62: 1052.385945
A63: Total opex ($'000) | C63: $FY23 | D63: =Calculation!D82 -> 4493.877704 | E63: =Calculation!E82 -> 4493.877704 | F63: =Calculation!F82 -> 4493.877704 | G63: =Calculation!G82 -> 4493.877704 | H63: =Calculation!H82 -> 4493.877704 | I63: =Calculation!I82 -> 4493.877704 | J63: =Calculation!J82 -> 4493.877704 | K63: =Calculation!K82 -> 4493.877704

Sheet Graphs
A1: Murraylink: Access Arrangement
A2: Operating Expenditure Forecast
